{"text_format":"1","workbook":"xlsx","n_sheets":4,"sheets":["Produktionsanlæg","Distributionsanlæg","Fællesfunktionsanlæg","Drop downliste"],"not_rendered":{"charts":0,"images":0,"macros":1,"external_links":0,"defined_names":2,"comments":0,"pivot_tables":0},"unopened":[],"bounds":{"document_bytes":16777216,"sheet_cells":100000,"rows_first":2000,"rows_last":500,"rows_between":2000,"halvings":0,"cell_chars":16384,"cell_head_chars":4096},"cells_cut":0,"cells_raw":0,"read":"whole","date_system":"1900"}

{"sheet":"Produktionsanlæg","index":0,"n_rows":411,"n_cols":6,"rows_kept":411,"cut":false,"hidden":false,"merged":[[0,5,1,5],[0,0,1,0],[0,1,1,1],[0,2,1,2],[0,3,1,3],[0,4,1,4]]}
["Produktionsanlæg","Enhed","Standard-levetid","Samlet mængde per 31/12-2014","Samlet mængde per 31/12-2015","Bemærk-ninger"]
[]
["Boringer"]
["Boring (inkl. etablering, forerør, filter og prøvepumpning)","dybdemeter",30,3371,{"$f":"1092+258+100+100","v":1550},"sløjfet boringer"]
["Råvandsstationer"]
["Råvandsstation komplet montering og boringshus/tørbrønd","stk.",30,24,12]
["Instrumenter (flowmåler+tryk transducer+alarmer)","stk.",10,8,{"$f":"+D7","v":8}]
["Pumpe inkl. stigrør og forerørsforsejlinger mv. - 1","m³/h ",15,133,133]
["Pumpe inkl. stigrør og forerørsforsejlinger mv. - 2","m³/h ",15,100,100]
["Pumpe inkl. stigrør og forerørsforsejlinger mv. - 3","m³/h ",15,100,100]
["Pumpe inkl. stigrør og forerørsforsejlinger mv. - 4","m³/h ",15,77,77]
["Pumpe inkl. stigrør og forerørsforsejlinger mv. - 5","m³/h ",15,100,100]
["Pumpe inkl. stigrør og forerørsforsejlinger mv. - 6","m³/h ",15,100,100]
["Pumpe inkl. stigrør og forerørsforsejlinger mv. - 7","m³/h ",15,100,100]
["Pumpe inkl. stigrør og forerørsforsejlinger mv. - 8","m³/h ",15,75,75]
["Pumpe inkl. stigrør og forerørsforsejlinger mv. - 9","m³/h ",15,100,100]
["Pumpe inkl. stigrør og forerørsforsejlinger mv. - 10","m³/h ",15,349,349]
["Erstatninger (OBS ingen øst-tillæg eller øvrige tillæg) ","stk.",30,17,17]
["Hegn","stk.",15,0,0]
["Elanlæg","boring",20,21,21]
["SRO anlæg","boring",10,21,21]
["Råvandsledninger - Land"]
["Ø 50mm < Ledningsnet ≤ Ø110 mm","meter",75,304,304]
["Ø110 mm < Ledningsnet ≤ Ø 250 mm","meter",75,9210,{"$f":"+D24-1000","v":8210}]
["Ø 250 mm < Ledningsnet ≤ Ø 500mm","meter",75,856,856]
["Ledningsnet > Ø 500 mm","meter",75,0,0]
["Råvandsledninger - By"]
["Ø 50mm < Ledningsnet ≤ Ø110 mm","meter",75,0,0]
["Ø110 mm < Ledningsnet ≤ Ø 250 mm","meter",75,3067,3067]
["Ø 250 mm < Ledningsnet ≤ Ø 500mm","meter",75,0,0]
["Ledningsnet > Ø 500 mm","meter",75,0,0]
["Råvandsledninger - City"]
["Ø 50mm < Ledningsnet ≤ Ø110 mm","meter",75,0,0]
["Ø110 mm < Ledningsnet ≤ Ø 250 mm","meter",75,0,0]
["Ø 250 mm < Ledningsnet ≤ Ø 500mm","meter",75,0,0]
["Ledningsnet > Ø 500 mm","meter",75,0,0]
["Vandværk 1",null,null,null,null,"Vebbestrup"]
["Beluftningsanlæg, iltningstrappe, Konstruktioner","m³/h ",50,0,0]
["Beluftningsanlæg, iltningstrappe, Mek./EL","m³/h ",25,0,0]
["Beluftningsanlæg, ika-beluftning, Konstruktioner","m³/h ",50,0,0]
["Beluftningsanlæg, ika-beluftning, Mek./EL","m³/h ",25,0,0]
["Beluftningsanlæg, bundbeluftbning, Konstruktioner","m³/h ",50,0,0]
["Beluftningsanlæg, bundbeluftbning, Mek./EL","m³/h ",25,0,0]
["Beluftningsanlæg, rislebakke, Konstruktioner","m³/h ",50,0,0]
["Beluftningsanlæg, rislebakke, Mek./EL","m³/h ",25,0,0]
["Beluftningsanlæg, kompressorbeluftning","m³/h ",25,0,0]
["Beluftningsanlæg, ren ilt","m³/h ",25,0,0]
["Behandlingsanlæg, kalk anlæg","m³/h ",25,0,0]
["Behandlingsanlæg, luddosering","m³/h ",25,0,0]
["Filteranlæg, åbne filtre, enkelt filtrering, Konstruktioner","m³/h ",50,0,0]
["Filteranlæg, åbne filtre, enkelt filtrering, Mek./EL","m³/h ",25,0,0]
["Filteranlæg, åbne filtre, dobbelt filtrering, Konstruktioner","m³/h ",50,0,0]
["Filteranlæg, åbne filtre, dobbelt filtrering, Mek./EL","m³/h ",25,0,0]
["Filteranlæg, trykfiltre, enkelt filtrering","m³/h ",25,18,18]
["Filteranlæg, trykfiltre, dobbelt filtrering","m³/h ",25,0,0]
["Rentvandsbeholder  insitu støbt","m³",50,0,0]
["Rentvandsbeholder  element","m³",50,80,80]
["Udpumpningsanlæg, rentvandspumper på vandværk","m³/h ",25,0,0]
["Udpumpningsanlæg, frekvensomformer","kW",25,32,32]
["Udpumpningsanlæg, Hydrofor","liter",25,2,2]
["Skyllevand-/slamhåndteringsanlæg - lukkede betonbeholdere","m³",50,10,10]
["Skyllevand-/slamhåndteringsanl. - åbne med faste sider/bund","m³",50,0,0]
["Skyllevand-/slamhåndteringsanlæg - jordbassiner","m³",50,0,0]
["Skyllevandsbehandling, inkl. UV-filter mv., Mek./EL","m³/h.",25,0,0]
["Skyllevandsbehandling, inkl. UV-filter mv., SRO","m³/h.",10,0,0]
["Nødstrømsanlæg på vandværk","kW",25,0,0]
["Elanlæg og SRO-anlæg - vandværk, Elanlæg","m³/h.",25,32,32]
["Elanlæg og SRO-anlæg - vandværk, SRO","m³/h.",10,32,32]
["Vandværk 2",null,null,0,null,"Østvand"]
["Beluftningsanlæg, iltningstrappe, Konstruktioner","m³/h ",50,0,0]
["Beluftningsanlæg, iltningstrappe, Mek./EL","m³/h ",25,0,{"$f":"+D71","v":0}]
["Beluftningsanlæg, ika-beluftning, Konstruktioner","m³/h ",50,0,0]
["Beluftningsanlæg, ika-beluftning, Mek./EL","m³/h ",25,0,0]
["Beluftningsanlæg, bundbeluftbning, Konstruktioner","m³/h ",50,0,0]
["Beluftningsanlæg, bundbeluftbning, Mek./EL","m³/h ",25,0,0]
["Beluftningsanlæg, rislebakke, Konstruktioner","m³/h ",50,0,0]
["Beluftningsanlæg, rislebakke, Mek./EL","m³/h ",25,0,0]
["Beluftningsanlæg, kompressorbeluftning","m³/h ",25,0,0]
["Beluftningsanlæg, ren ilt","m³/h ",25,0,0]
["Behandlingsanlæg, kalk anlæg","m³/h ",25,0,0]
["Behandlingsanlæg, luddosering","m³/h ",25,0,0]
["Filteranlæg, åbne filtre, enkelt filtrering, Konstruktioner","m³/h ",50,0,0]
["Filteranlæg, åbne filtre, enkelt filtrering, Mek./EL","m³/h ",25,0,0]
["Filteranlæg, åbne filtre, dobbelt filtrering, Konstruktioner","m³/h ",50,0,0]
["Filteranlæg, åbne filtre, dobbelt filtrering, Mek./EL","m³/h ",25,0,0]
["Filteranlæg, trykfiltre, enkelt filtrering","m³/h ",25,0,0]
["Filteranlæg, trykfiltre, dobbelt filtrering","m³/h ",25,0,0]
["Rentvandsbeholder  insitu støbt","m³",50,0,0]
["Rentvandsbeholder  element","m³",50,540,540]
["Udpumpningsanlæg, rentvandspumper på vandværk","m³/h ",25,400,400]
["Udpumpningsanlæg, frekvensomformer","kW",25,11,11]
["Udpumpningsanlæg, Hydrofor","liter",25,0,0]
["Skyllevand-/slamhåndteringsanlæg - lukkede betonbeholdere","m³",50,0,0]
["Skyllevand-/slamhåndteringsanl. - åbne med faste sider/bund","m³",50,0,0]
["Skyllevand-/slamhåndteringsanlæg - jordbassiner","m³",50,0,0]
["Skyllevandsbehandling, inkl. UV-filter mv., Mek./EL","m³/h.",25,0,0]
["Skyllevandsbehandling, inkl. UV-filter mv., SRO","m³/h.",10,0,0]
["Nødstrømsanlæg på vandværk","kW",25,30,30]
["Elanlæg og SRO-anlæg - vandværk, Elanlæg","m³/h.",25,300,300]
["Elanlæg og SRO-anlæg - vandværk, SRO","m³/h.",10,400,400]
["Vandværk 3",null,null,0,0,"Skivevej I"]
["Beluftningsanlæg, iltningstrappe, Konstruktioner","m³/h ",50,400,400]
["Beluftningsanlæg, iltningstrappe, Mek./EL","m³/h ",25,400,400]
["Beluftningsanlæg, ika-beluftning, Konstruktioner","m³/h ",50,400,400]
["Beluftningsanlæg, ika-beluftning, Mek./EL","m³/h ",25,0,0]
["Beluftningsanlæg, bundbeluftbning, Konstruktioner","m³/h ",50,0,0]
["Beluftningsanlæg, bundbeluftbning, Mek./EL","m³/h ",25,0,0]
["Beluftningsanlæg, rislebakke, Konstruktioner","m³/h ",50,0,0]
["Beluftningsanlæg, rislebakke, Mek./EL","m³/h ",25,0,0]
["Beluftningsanlæg, kompressorbeluftning","m³/h ",25,0,0]
["Beluftningsanlæg, ren ilt","m³/h ",25,0,0]
["Behandlingsanlæg, kalk anlæg","m³/h ",25,0,0]
["Behandlingsanlæg, luddosering","m³/h ",25,0,0]
["Filteranlæg, åbne filtre, enkelt filtrering, Konstruktioner","m³/h ",50,400,400]
["Filteranlæg, åbne filtre, enkelt filtrering, Mek./EL","m³/h ",25,400,400]
["Filteranlæg, åbne filtre, dobbelt filtrering, Konstruktioner","m³/h ",50,0,0]
["Filteranlæg, åbne filtre, dobbelt filtrering, Mek./EL","m³/h ",25,0,0]
["Filteranlæg, trykfiltre, enkelt filtrering","m³/h ",25,0,0]
["Filteranlæg, trykfiltre, dobbelt filtrering","m³/h ",25,0,0]
["Rentvandsbeholder  insitu støbt","m³",50,3000,3000]
["Rentvandsbeholder  element","m³",50,0,0]
["Udpumpningsanlæg, rentvandspumper på vandværk","m³/h ",25,284,284]
["Udpumpningsanlæg, frekvensomformer","kW",25,0,0]
["Udpumpningsanlæg, Hydrofor","liter",25,6,6]
["Skyllevand-/slamhåndteringsanlæg - lukkede betonbeholdere","m³",50,0,0]
["Skyllevand-/slamhåndteringsanl. - åbne med faste sider/bund","m³",50,300,300]
["Skyllevand-/slamhåndteringsanlæg - jordbassiner","m³",50,0,0]
["Skyllevandsbehandling, inkl. UV-filter mv., Mek./EL","m³/h.",25,0,0]
["Skyllevandsbehandling, inkl. UV-filter mv., SRO","m³/h.",10,0,0]
["Nødstrømsanlæg på vandværk","kW",25,0,0]
["Elanlæg og SRO-anlæg - vandværk, Elanlæg","m³/h.",25,284,284]
["Elanlæg og SRO-anlæg - vandværk, SRO","m³/h.",10,295,295]
["Vandværk 4",null,null,0,0,"Skivevej II"]
["Beluftningsanlæg, iltningstrappe, Konstruktioner","m³/h ",50,0,0]
["Beluftningsanlæg, iltningstrappe, Mek./EL","m³/h ",25,0,{"$f":"+D135","v":0}]
["Beluftningsanlæg, ika-beluftning, Konstruktioner","m³/h ",50,0,0]
["Beluftningsanlæg, ika-beluftning, Mek./EL","m³/h ",25,0,0]
["Beluftningsanlæg, bundbeluftbning, Konstruktioner","m³/h ",50,0,0]
["Beluftningsanlæg, bundbeluftbning, Mek./EL","m³/h ",25,0,0]
["Beluftningsanlæg, rislebakke, Konstruktioner","m³/h ",50,0,0]
["Beluftningsanlæg, rislebakke, Mek./EL","m³/h ",25,0,0]
["Beluftningsanlæg, kompressorbeluftning","m³/h ",25,0,0]
["Beluftningsanlæg, ren ilt","m³/h ",25,0,0]
["Behandlingsanlæg, kalk anlæg","m³/h ",25,0,0]
["Behandlingsanlæg, luddosering","m³/h ",25,0,0]
["Filteranlæg, åbne filtre, enkelt filtrering, Konstruktioner","m³/h ",50,0,0]
["Filteranlæg, åbne filtre, enkelt filtrering, Mek./EL","m³/h ",25,0,0]
["Filteranlæg, åbne filtre, dobbelt filtrering, Konstruktioner","m³/h ",50,0,0]
["Filteranlæg, åbne filtre, dobbelt filtrering, Mek./EL","m³/h ",25,0,0]
["Filteranlæg, trykfiltre, enkelt filtrering","m³/h ",25,0,0]
["Filteranlæg, trykfiltre, dobbelt filtrering","m³/h ",25,0,0]
["Rentvandsbeholder  insitu støbt","m³",50,0,0]
["Rentvandsbeholder  element","m³",50,1000,1000]
["Udpumpningsanlæg, rentvandspumper på vandværk","m³/h ",25,60,60]
["Udpumpningsanlæg, frekvensomformer","kW",25,0,0]
["Udpumpningsanlæg, Hydrofor","liter",25,0,0]
["Skyllevand-/slamhåndteringsanlæg - lukkede betonbeholdere","m³",50,24,24]
["Skyllevand-/slamhåndteringsanl. - åbne med faste sider/bund","m³",50,0,0]
["Skyllevand-/slamhåndteringsanlæg - jordbassiner","m³",50,0,0]
["Skyllevandsbehandling, inkl. UV-filter mv., Mek./EL","m³/h.",25,0,0]
["Skyllevandsbehandling, inkl. UV-filter mv., SRO","m³/h.",10,0,0]
["Nødstrømsanlæg på vandværk","kW",25,68,68]
["Elanlæg og SRO-anlæg - vandværk, Elanlæg","m³/h.",25,0,0]
["Elanlæg og SRO-anlæg - vandværk, SRO","m³/h.",10,0,0]
["Vandværk 5",null,null,0,null,"Skivevej III"]
["Beluftningsanlæg, iltningstrappe, Konstruktioner","m³/h ",50,0,0]
["Beluftningsanlæg, iltningstrappe, Mek./EL","m³/h ",25,0,0]
["Beluftningsanlæg, ika-beluftning, Konstruktioner","m³/h ",50,0,0]
["Beluftningsanlæg, ika-beluftning, Mek./EL","m³/h ",25,0,0]
["Beluftningsanlæg, bundbeluftbning, Konstruktioner","m³/h ",50,0,0]
["Beluftningsanlæg, bundbeluftbning, Mek./EL","m³/h ",25,0,0]
["Beluftningsanlæg, rislebakke, Konstruktioner","m³/h ",50,0,0]
["Beluftningsanlæg, rislebakke, Mek./EL","m³/h ",25,0,0]
["Beluftningsanlæg, kompressorbeluftning","m³/h ",25,0,0]
["Beluftningsanlæg, ren ilt","m³/h ",25,0,0]
["Behandlingsanlæg, kalk anlæg","m³/h ",25,0,0]
["Behandlingsanlæg, luddosering","m³/h ",25,0,0]
["Filteranlæg, åbne filtre, enkelt filtrering, Konstruktioner","m³/h ",50,0,0]
["Filteranlæg, åbne filtre, enkelt filtrering, Mek./EL","m³/h ",25,0,0]
["Filteranlæg, åbne filtre, dobbelt filtrering, Konstruktioner","m³/h ",50,0,0]
["Filteranlæg, åbne filtre, dobbelt filtrering, Mek./EL","m³/h ",25,0,0]
["Filteranlæg, trykfiltre, enkelt filtrering","m³/h ",25,300,300]
["Filteranlæg, trykfiltre, dobbelt filtrering","m³/h ",25,0,0]
["Rentvandsbeholder  insitu støbt","m³",50,0,0]
["Rentvandsbeholder  element","m³",50,500,500]
["Udpumpningsanlæg, rentvandspumper på vandværk","m³/h ",25,380,380]
["Udpumpningsanlæg, frekvensomformer","kW",25,8,8]
["Udpumpningsanlæg, Hydrofor","liter",25,0,0]
["Skyllevand-/slamhåndteringsanlæg - lukkede betonbeholdere","m³",50,0,0]
["Skyllevand-/slamhåndteringsanl. - åbne med faste sider/bund","m³",50,0,0]
["Skyllevand-/slamhåndteringsanlæg - jordbassiner","m³",50,0,0]
["Skyllevandsbehandling, inkl. UV-filter mv., Mek./EL","m³/h.",25,0,0]
["Skyllevandsbehandling, inkl. UV-filter mv., SRO","m³/h.",10,0,0]
["Nødstrømsanlæg på vandværk","kW",25,0,0]
["Elanlæg og SRO-anlæg - vandværk, Elanlæg","m³/h.",25,380,380]
["Elanlæg og SRO-anlæg - vandværk, SRO","m³/h.",10,380,380]
["Vandværk 6",null,null,0,0,"Gl. Skellerup"]
["Beluftningsanlæg, iltningstrappe, Konstruktioner","m³/h ",50,0,0]
["Beluftningsanlæg, iltningstrappe, Mek./EL","m³/h ",25,0,{"$f":"+D199","v":0}]
["Beluftningsanlæg, ika-beluftning, Konstruktioner","m³/h ",50,0,0]
["Beluftningsanlæg, ika-beluftning, Mek./EL","m³/h ",25,0,0]
["Beluftningsanlæg, bundbeluftbning, Konstruktioner","m³/h ",50,0,0]
["Beluftningsanlæg, bundbeluftbning, Mek./EL","m³/h ",25,0,0]
["Beluftningsanlæg, rislebakke, Konstruktioner","m³/h ",50,0,0]
["Beluftningsanlæg, rislebakke, Mek./EL","m³/h ",25,0,0]
["Beluftningsanlæg, kompressorbeluftning","m³/h ",25,0,0]
["Beluftningsanlæg, ren ilt","m³/h ",25,0,0]
["Behandlingsanlæg, kalk anlæg","m³/h ",25,0,0]
["Behandlingsanlæg, luddosering","m³/h ",25,0,0]
["Filteranlæg, åbne filtre, enkelt filtrering, Konstruktioner","m³/h ",50,0,0]
["Filteranlæg, åbne filtre, enkelt filtrering, Mek./EL","m³/h ",25,0,0]
["Filteranlæg, åbne filtre, dobbelt filtrering, Konstruktioner","m³/h ",50,0,0]
["Filteranlæg, åbne filtre, dobbelt filtrering, Mek./EL","m³/h ",25,0,0]
["Filteranlæg, trykfiltre, enkelt filtrering","m³/h ",25,0,0]
["Filteranlæg, trykfiltre, dobbelt filtrering","m³/h ",25,0,0]
["Rentvandsbeholder  insitu støbt","m³",50,0,0]
["Rentvandsbeholder  element","m³",50,0,0]
["Udpumpningsanlæg, rentvandspumper på vandværk","m³/h ",25,0,0]
["Udpumpningsanlæg, frekvensomformer","kW",25,0,0]
["Udpumpningsanlæg, Hydrofor","liter",25,0,0]
["Skyllevand-/slamhåndteringsanlæg - lukkede betonbeholdere","m³",50,0,0]
["Skyllevand-/slamhåndteringsanl. - åbne med faste sider/bund","m³",50,0,0]
["Skyllevand-/slamhåndteringsanlæg - jordbassiner","m³",50,0,0]
["Skyllevandsbehandling, inkl. UV-filter mv., Mek./EL","m³/h.",25,0,0]
["Skyllevandsbehandling, inkl. UV-filter mv., SRO","m³/h.",10,0,0]
["Nødstrømsanlæg på vandværk","kW",25,0,0]
["Elanlæg og SRO-anlæg - vandværk, Elanlæg","m³/h.",25,0,0]
["Elanlæg og SRO-anlæg - vandværk, SRO","m³/h.",10,0,0]
["Vandværk 7",null,null,0,0,"Holmegård"]
["Beluftningsanlæg, iltningstrappe, Konstruktioner","m³/h ",50,0,0]
["Beluftningsanlæg, iltningstrappe, Mek./EL","m³/h ",25,0,0]
["Beluftningsanlæg, ika-beluftning, Konstruktioner","m³/h ",50,0,0]
["Beluftningsanlæg, ika-beluftning, Mek./EL","m³/h ",25,0,0]
["Beluftningsanlæg, bundbeluftbning, Konstruktioner","m³/h ",50,0,0]
["Beluftningsanlæg, bundbeluftbning, Mek./EL","m³/h ",25,0,0]
["Beluftningsanlæg, rislebakke, Konstruktioner","m³/h ",50,0,0]
["Beluftningsanlæg, rislebakke, Mek./EL","m³/h ",25,0,0]
["Beluftningsanlæg, kompressorbeluftning","m³/h ",25,0,0]
["Beluftningsanlæg, ren ilt","m³/h ",25,0,0]
["Behandlingsanlæg, kalk anlæg","m³/h ",25,0,0]
["Behandlingsanlæg, luddosering","m³/h ",25,0,0]
["Filteranlæg, åbne filtre, enkelt filtrering, Konstruktioner","m³/h ",50,0,0]
["Filteranlæg, åbne filtre, enkelt filtrering, Mek./EL","m³/h ",25,0,0]
["Filteranlæg, åbne filtre, dobbelt filtrering, Konstruktioner","m³/h ",50,0,0]
["Filteranlæg, åbne filtre, dobbelt filtrering, Mek./EL","m³/h ",25,0,0]
["Filteranlæg, trykfiltre, enkelt filtrering","m³/h ",25,30,0]
["Filteranlæg, trykfiltre, dobbelt filtrering","m³/h ",25,0,0]
["Rentvandsbeholder  insitu støbt","m³",50,120,0]
["Rentvandsbeholder  element","m³",50,0,0]
["Udpumpningsanlæg, rentvandspumper på vandværk","m³/h ",25,32,0]
["Udpumpningsanlæg, frekvensomformer","kW",25,2,0]
["Udpumpningsanlæg, Hydrofor","liter",25,0,0]
["Skyllevand-/slamhåndteringsanlæg - lukkede betonbeholdere","m³",50,10,0]
["Skyllevand-/slamhåndteringsanl. - åbne med faste sider/bund","m³",50,0,0]
["Skyllevand-/slamhåndteringsanlæg - jordbassiner","m³",50,0,0]
["Skyllevandsbehandling, inkl. UV-filter mv., Mek./EL","m³/h.",25,0,0]
["Skyllevandsbehandling, inkl. UV-filter mv., SRO","m³/h.",10,0,0]
["Nødstrømsanlæg på vandværk","kW",25,0,0]
["Elanlæg og SRO-anlæg - vandværk, Elanlæg","m³/h.",25,32,0]
["Elanlæg og SRO-anlæg - vandværk, SRO","m³/h.",10,32,0]
["Vandværk 8",null,null,0,0,"Hvornum"]
["Beluftningsanlæg, iltningstrappe, Konstruktioner","m³/h ",50,0,0]
["Beluftningsanlæg, iltningstrappe, Mek./EL","m³/h ",25,0,0]
["Beluftningsanlæg, ika-beluftning, Konstruktioner","m³/h ",50,0,0]
["Beluftningsanlæg, ika-beluftning, Mek./EL","m³/h ",25,0,0]
["Beluftningsanlæg, bundbeluftbning, Konstruktioner","m³/h ",50,0,0]
["Beluftningsanlæg, bundbeluftbning, Mek./EL","m³/h ",25,0,0]
["Beluftningsanlæg, rislebakke, Konstruktioner","m³/h ",50,0,0]
["Beluftningsanlæg, rislebakke, Mek./EL","m³/h ",25,0,0]
["Beluftningsanlæg, kompressorbeluftning","m³/h ",25,0,0]
["Beluftningsanlæg, ren ilt","m³/h ",25,0,0]
["Behandlingsanlæg, kalk anlæg","m³/h ",25,0,0]
["Behandlingsanlæg, luddosering","m³/h ",25,0,0]
["Filteranlæg, åbne filtre, enkelt filtrering, Konstruktioner","m³/h ",50,0,0]
["Filteranlæg, åbne filtre, enkelt filtrering, Mek./EL","m³/h ",25,0,0]
["Filteranlæg, åbne filtre, dobbelt filtrering, Konstruktioner","m³/h ",50,0,0]
["Filteranlæg, åbne filtre, dobbelt filtrering, Mek./EL","m³/h ",25,0,0]
["Filteranlæg, trykfiltre, enkelt filtrering","m³/h ",25,12,0]
["Filteranlæg, trykfiltre, dobbelt filtrering","m³/h ",25,0,0]
["Rentvandsbeholder  insitu støbt","m³",50,80,0]
["Rentvandsbeholder  element","m³",50,0,0]
["Udpumpningsanlæg, rentvandspumper på vandværk","m³/h ",25,16,0]
["Udpumpningsanlæg, frekvensomformer","kW",25,2,0]
["Udpumpningsanlæg, Hydrofor","liter",25,0,0]
["Skyllevand-/slamhåndteringsanlæg - lukkede betonbeholdere","m³",50,10,0]
["Skyllevand-/slamhåndteringsanl. - åbne med faste sider/bund","m³",50,0,0]
["Skyllevand-/slamhåndteringsanlæg - jordbassiner","m³",50,0,0]
["Skyllevandsbehandling, inkl. UV-filter mv., Mek./EL","m³/h.",25,0,0]
["Skyllevandsbehandling, inkl. UV-filter mv., SRO","m³/h.",10,0,0]
["Nødstrømsanlæg på vandværk","kW",25,0,0]
["Elanlæg og SRO-anlæg - vandværk, Elanlæg","m³/h.",25,16,0]
["Elanlæg og SRO-anlæg - vandværk, SRO","m³/h.",10,16,0]
["Vandværk 9",null,null,0,{"$f":"+D293","v":0},"Snæbum"]
["Beluftningsanlæg, iltningstrappe, Konstruktioner","m³/h ",50,0,0]
["Beluftningsanlæg, iltningstrappe, Mek./EL","m³/h ",25,0,0]
["Beluftningsanlæg, ika-beluftning, Konstruktioner","m³/h ",50,0,0]
["Beluftningsanlæg, ika-beluftning, Mek./EL","m³/h ",25,0,0]
["Beluftningsanlæg, bundbeluftbning, Konstruktioner","m³/h ",50,0,0]
["Beluftningsanlæg, bundbeluftbning, Mek./EL","m³/h ",25,0,0]
["Beluftningsanlæg, rislebakke, Konstruktioner","m³/h ",50,0,0]
["Beluftningsanlæg, rislebakke, Mek./EL","m³/h ",25,0,0]
["Beluftningsanlæg, kompressorbeluftning","m³/h ",25,0,0]
["Beluftningsanlæg, ren ilt","m³/h ",25,0,0]
["Behandlingsanlæg, kalk anlæg","m³/h ",25,0,0]
["Behandlingsanlæg, luddosering","m³/h ",25,0,0]
["Filteranlæg, åbne filtre, enkelt filtrering, Konstruktioner","m³/h ",50,0,0]
["Filteranlæg, åbne filtre, enkelt filtrering, Mek./EL","m³/h ",25,0,0]
["Filteranlæg, åbne filtre, dobbelt filtrering, Konstruktioner","m³/h ",50,0,0]
["Filteranlæg, åbne filtre, dobbelt filtrering, Mek./EL","m³/h ",25,0,0]
["Filteranlæg, trykfiltre, enkelt filtrering","m³/h ",25,14,14]
["Filteranlæg, trykfiltre, dobbelt filtrering","m³/h ",25,0,0]
["Rentvandsbeholder  insitu støbt","m³",50,80,80]
["Rentvandsbeholder  element","m³",50,0,0]
["Udpumpningsanlæg, rentvandspumper på vandværk","m³/h ",25,32,32]
["Udpumpningsanlæg, frekvensomformer","kW",25,4,4]
["Udpumpningsanlæg, Hydrofor","liter",25,0,0]
["Skyllevand-/slamhåndteringsanlæg - lukkede betonbeholdere","m³",50,10,10]
["Skyllevand-/slamhåndteringsanl. - åbne med faste sider/bund","m³",50,0,0]
["Skyllevand-/slamhåndteringsanlæg - jordbassiner","m³",50,0,0]
["Skyllevandsbehandling, inkl. UV-filter mv., Mek./EL","m³/h.",25,0,0]
["Skyllevandsbehandling, inkl. UV-filter mv., SRO","m³/h.",10,0,0]
["Nødstrømsanlæg på vandværk","kW",25,0,0]
["Elanlæg og SRO-anlæg - vandværk, Elanlæg","m³/h.",25,32,32]
["Elanlæg og SRO-anlæg - vandværk, SRO","m³/h.",10,32,32]
["Vandværk 10",null,null,0,0,"Døstrup"]
["Beluftningsanlæg, iltningstrappe, Konstruktioner","m³/h ",50,0,0]
["Beluftningsanlæg, iltningstrappe, Mek./EL","m³/h ",25,0,{"$f":"+D327","v":0}]
["Beluftningsanlæg, ika-beluftning, Konstruktioner","m³/h ",50,0,0]
["Beluftningsanlæg, ika-beluftning, Mek./EL","m³/h ",25,0,0]
["Beluftningsanlæg, bundbeluftbning, Konstruktioner","m³/h ",50,0,0]
["Beluftningsanlæg, bundbeluftbning, Mek./EL","m³/h ",25,0,0]
["Beluftningsanlæg, rislebakke, Konstruktioner","m³/h ",50,0,0]
["Beluftningsanlæg, rislebakke, Mek./EL","m³/h ",25,0,0]
["Beluftningsanlæg, kompressorbeluftning","m³/h ",25,0,0]
["Beluftningsanlæg, ren ilt","m³/h ",25,0,0]
["Behandlingsanlæg, kalk anlæg","m³/h ",25,0,0]
["Behandlingsanlæg, luddosering","m³/h ",25,0,0]
["Filteranlæg, åbne filtre, enkelt filtrering, Konstruktioner","m³/h ",50,0,0]
["Filteranlæg, åbne filtre, enkelt filtrering, Mek./EL","m³/h ",25,0,0]
["Filteranlæg, åbne filtre, dobbelt filtrering, Konstruktioner","m³/h ",50,0,0]
["Filteranlæg, åbne filtre, dobbelt filtrering, Mek./EL","m³/h ",25,0,0]
["Filteranlæg, trykfiltre, enkelt filtrering","m³/h ",25,14,14]
["Filteranlæg, trykfiltre, dobbelt filtrering","m³/h ",25,0,0]
["Rentvandsbeholder  insitu støbt","m³",50,80,80]
["Rentvandsbeholder  element","m³",50,0,0]
["Udpumpningsanlæg, rentvandspumper på vandværk","m³/h ",25,16,16]
["Udpumpningsanlæg, frekvensomformer","kW",25,0,0]
["Udpumpningsanlæg, Hydrofor","liter",25,3000,3000]
["Skyllevand-/slamhåndteringsanlæg - lukkede betonbeholdere","m³",50,10,10]
["Skyllevand-/slamhåndteringsanl. - åbne med faste sider/bund","m³",50,0,0]
["Skyllevand-/slamhåndteringsanlæg - jordbassiner","m³",50,0,0]
["Skyllevandsbehandling, inkl. UV-filter mv., Mek./EL","m³/h.",25,0,0]
["Skyllevandsbehandling, inkl. UV-filter mv., SRO","m³/h.",10,0,0]
["Nødstrømsanlæg på vandværk","kW",25,0,0]
["Elanlæg og SRO-anlæg - vandværk, Elanlæg","m³/h.",25,16,16]
["Elanlæg og SRO-anlæg - vandværk, SRO","m³/h.",10,16,16]
["Beluftningsanlæg, iltningstrappe, Konstruktioner","m³/h ",50,0,0,"nyt Skjellerup"]
["Beluftningsanlæg, iltningstrappe, Mek./EL","m³/h ",25,0,0]
["Beluftningsanlæg, ika-beluftning, Konstruktioner","m³/h ",50,0,0]
["Beluftningsanlæg, ika-beluftning, Mek./EL","m³/h ",25,0,0]
["Beluftningsanlæg, bundbeluftbning, Konstruktioner","m³/h ",50,0,0]
["Beluftningsanlæg, bundbeluftbning, Mek./EL","m³/h ",25,0,0]
["Beluftningsanlæg, rislebakke, Konstruktioner","m³/h ",50,0,0]
["Beluftningsanlæg, rislebakke, Mek./EL","m³/h ",25,0,0]
["Beluftningsanlæg, kompressorbeluftning","m³/h ",25,0,0]
["Beluftningsanlæg, ren ilt","m³/h ",25,0,0]
["Behandlingsanlæg, kalk anlæg","m³/h ",25,0,0]
["Behandlingsanlæg, luddosering","m³/h ",25,0,0]
["Filteranlæg, åbne filtre, enkelt filtrering, Konstruktioner","m³/h ",50,0,0]
["Filteranlæg, åbne filtre, enkelt filtrering, Mek./EL","m³/h ",25,0,0]
["Filteranlæg, åbne filtre, dobbelt filtrering, Konstruktioner","m³/h ",50,0,0]
["Filteranlæg, åbne filtre, dobbelt filtrering, Mek./EL","m³/h ",25,0,0]
["Filteranlæg, trykfiltre, enkelt filtrering","m³/h ",25,0,0]
["Filteranlæg, trykfiltre, dobbelt filtrering","m³/h ",25,210,210]
["Rentvandsbeholder  insitu støbt","m³",50,0,0]
["Rentvandsbeholder  element","m³",50,0,0]
["Udpumpningsanlæg, rentvandspumper på vandværk","m³/h ",25,200,200]
["Udpumpningsanlæg, frekvensomformer","kW",25,10,10]
["Udpumpningsanlæg, Hydrofor","liter",25,0,0]
["Skyllevand-/slamhåndteringsanlæg - lukkede betonbeholdere","m³",50,0,0]
["Skyllevand-/slamhåndteringsanl. - åbne med faste sider/bund","m³",50,50,50]
["Skyllevand-/slamhåndteringsanlæg - jordbassiner","m³",50,0,0]
["Skyllevandsbehandling, inkl. UV-filter mv., Mek./EL","m³/h.",25,0,0]
["Skyllevandsbehandling, inkl. UV-filter mv., SRO","m³/h.",10,0,0]
["Nødstrømsanlæg på vandværk","kW",25,0,0]
["Elanlæg og SRO-anlæg - vandværk, Elanlæg","m³/h.",25,100,100]
["Elanlæg og SRO-anlæg - vandværk, SRO","m³/h.",10,20,20]
["Bygninger",null,null,20,20]
["Etageareal vandbehandlingsbygning","m²",75,0,0]
["Etageareal kontor og mandskabsfaciliteter","m²",75,1519,1519]
["Værksted","m²",75,503,{"$f":"+D391","v":503}]
["Lager","m²",75,302,302]
["Garage og rørlager","m²",75,0,0]
["Bygning for trykforøgere","m²",75,430,430]
["Laboratorium (bygning, inkl. inventar+udstyr), Konstruktioner","m²",75,505,505]
["Laboratorium (bygning, inkl. inventar+udstyr), Mek./EL","m²",10,50,50]
["Andre",null,null,0,0]
["Sikring (terror, hærværk), Mek./EL","stk.",25,0,7]
["Sikring (terror, hærværk), SRO","stk.",10,7,7]
["Sikring, mindre avanceret (hegn, porte), Mek./EL","stk.",25,7,7]
["Sikring, mindre avanceret (hegn, porte), SRO","stk.",10,0,0]
["Sikring, avanceret (hegn, porte og overvågningssystemer), Mek./EL","stk.",25,0,0]
["Sikring, avanceret (hegn, porte og overvågningssystemer), SRO","stk.",10,5,5]
[null,null,null,5]
[]
[]
[]
[]
[]
[]
["FEJL"]

{"sheet":"Distributionsanlæg","index":1,"n_rows":182,"n_cols":6,"rows_kept":182,"cut":false,"hidden":false,"merged":[[0,5,1,5],[0,0,1,0],[0,1,1,1],[0,2,1,2],[0,3,1,3],[0,4,1,4]]}
["Distributionsanlæg","Enhed","Standard-levetid","Samlet mængde per 31/12-2014","Samlet mængde per 31/12-2015","Bemærk-ninger"]
[]
["Ledningsnet - Land"]
["Ledningsnet ≤ Ø50 mm","meter",75,12961,{"$f":"+D4+3610","v":16571}]
["Ø 50mm < Ledningsnet ≤ Ø110 mm","meter",75,126150,{"$f":"+D5+2900+24501","v":153551}]
["Ø110 mm < Ledningsnet ≤ Ø 250 mm","meter",75,10885,{"$f":"+D6","v":10885}]
["Ø 250 mm < Ledningsnet ≤ Ø 500mm","meter",75," -   ",{"$f":"+D7","v":" -   "}]
["Ledningsnet > Ø 500 mm","meter",75," -   "," -   "]
["Støbejernsledninger ≤ Ø50 mm","meter",100,87,87]
["Støbejernsledninger Ø 50mm < Ledningsnet ≤ Ø110 mm","meter",100,1289,1289]
["Støbejernsledninger Ø110 mm < Ledningsnet ≤ Ø 250 mm","meter",100," -   "," -   "]
["Støbejernsledninger Ø 250 mm < Ledningsnet ≤ Ø 500mm","meter",100," -   "," -   "]
["Støbejernsledninger Ledningsnet > Ø 500 mm","meter",100," -   "," -   "]
["Eternitledninger ≤ Ø50 mm","meter",75," -   "," -   "]
["Eternitledninger Ø 50mm < Ledningsnet ≤ Ø110 mm","meter",75,227,227]
["Eternitledninger Ø110 mm < Ledningsnet ≤ Ø 250 mm","meter",75," -   "," -   "]
["Eternitledninger Ø 250 mm < Ledningsnet ≤ Ø 500mm","meter",75," -   "," -   "]
["Eternitledninger Ledningsnet > Ø 500 mm","meter",75," -   "," -   "]
["Skelbrønd, Konstruktioner","stk.",50," -   "," -   "]
["Skelbrønd, Mek./EL","stk.",15," -   "," -   "]
["Inspektionsbrønd, Konstruktioner","stk.",50," -   "," -   "]
["Inspektionsbrønd, Mek./EL","stk.",15," -   "," -   "]
["Stik på ledningsnet, Konstruktioner","stk.",75,905,{"$f":"+D23+28","v":933}]
["Stik på ledningsnet, Mek./EL","stk.",75,884,884]
["Ledningsnet - By",null,null," -   "]
["Ledningsnet ≤ Ø50 mm","meter",75,6267,{"$f":"+D26+1030","v":7297}]
["Ø 50mm < Ledningsnet ≤ Ø110 mm","meter",75,72683,{"$f":"+D27+3455+208","v":76346}]
["Ø110 mm < Ledningsnet ≤ Ø 250 mm","meter",75,21191,21191]
["Ø 250 mm < Ledningsnet ≤ Ø 500mm","meter",75,41,41]
["Ledningsnet > Ø 500 mm","meter",75," -   "," -   "]
["Støbejernsledninger ≤ Ø50 mm","meter",100,1477,1477]
["Støbejernsledninger Ø 50mm < Ledningsnet ≤ Ø110 mm","meter",100,6283,6283]
["Støbejernsledninger Ø110 mm < Ledningsnet ≤ Ø 250 mm","meter",100,739,739]
["Støbejernsledninger Ø 250 mm < Ledningsnet ≤ Ø 500mm","meter",100," -   "," -   "]
["Støbejernsledninger Ledningsnet > Ø 500 mm","meter",100," -   "," -   "]
["Eternitledninger ≤ Ø50 mm","meter",75," -   "," -   "]
["Eternitledninger Ø 50mm < Ledningsnet ≤ Ø110 mm","meter",75,3009,3009]
["Eternitledninger Ø110 mm < Ledningsnet ≤ Ø 250 mm","meter",75,6707,6707]
["Eternitledninger Ø 250 mm < Ledningsnet ≤ Ø 500mm","meter",75," -   "," -   "]
["Eternitledninger Ledningsnet > Ø 500 mm","meter",75," -   "," -   "]
["Skelbrønd, Konstruktioner","stk.",50," -   "," -   "]
["Skelbrønd, Mek./EL","stk.",15," -   "," -   "]
["Inspektionsbrønd, Konstruktioner","stk.",50," -   "," -   "]
["Inspektionsbrønd, Mek./EL","stk.",15," -   "," -   "]
["Stik på ledningsnet, Konstruktioner","stk.",75,4016,{"$f":"+D45+9","v":4025}]
["Stik på ledningsnet, Mek./EL","stk.",75,3722,3722]
["Ledningsnet - City",null,null," -   "]
["Ledningsnet ≤ Ø50 mm","meter",75," -   "," -   "]
["Ø 50mm < Ledningsnet ≤ Ø110 mm","meter",75,2400,2400]
["Ø110 mm < Ledningsnet ≤ Ø 250 mm","meter",75," -   "," -   "]
["Ø 250 mm < Ledningsnet ≤ Ø 500mm","meter",75," -   "," -   "]
["Ledningsnet > Ø 500 mm","meter",75," -   "," -   "]
["Støbejernsledninger ≤ Ø50 mm","meter",100," -   "," -   "]
["Støbejernsledninger Ø 50mm < Ledningsnet ≤ Ø110 mm","meter",100," -   "," -   "]
["Støbejernsledninger Ø110 mm < Ledningsnet ≤ Ø 250 mm","meter",100," -   "," -   "]
["Støbejernsledninger Ø 250 mm < Ledningsnet ≤ Ø 500mm","meter",100," -   "," -   "]
["Støbejernsledninger Ledningsnet > Ø 500 mm","meter",100," -   "," -   "]
["Eternitledninger ≤ Ø50 mm","meter",75," -   "," -   "]
["Eternitledninger Ø 50mm < Ledningsnet ≤ Ø110 mm","meter",75," -   "," -   "]
["Eternitledninger Ø110 mm < Ledningsnet ≤ Ø 250 mm","meter",75," -   "," -   "]
["Eternitledninger Ø 250 mm < Ledningsnet ≤ Ø 500mm","meter",75," -   "," -   "]
["Eternitledninger Ledningsnet > Ø 500 mm","meter",75," -   "," -   "]
["Skelbrønd, Konstruktioner","stk.",50," -   "," -   "]
["Skelbrønd, Mek./EL","stk.",15," -   "," -   "]
["Inspektionsbrønd, Konstruktioner","stk.",50," -   "," -   "]
["Inspektionsbrønd, Mek./EL","stk.",15," -   "," -   "]
["Stik på ledningsnet, Konstruktioner","stk.",75," -   ",80]
["Stik på ledningsnet, Mek./EL","stk.",75," -   ",80]
["Ledningsnet - Indre city",null,null," -   "]
["Ledningsnet ≤ Ø50 mm","meter",75," -   "," -   "]
["Ø 50mm < Ledningsnet ≤ Ø110 mm","meter",75," -   ",{"$f":"+D71","v":" -   "}]
["Ø110 mm < Ledningsnet ≤ Ø 250 mm","meter",75," -   "," -   "]
["Ø 250 mm < Ledningsnet ≤ Ø 500mm","meter",75," -   "," -   "]
["Ledningsnet > Ø 500 mm","meter",75," -   "," -   "]
["Støbejernsledninger ≤ Ø50 mm","meter",100," -   "," -   "]
["Støbejernsledninger Ø 50mm < Ledningsnet ≤ Ø110 mm","meter",100," -   "," -   "]
["Støbejernsledninger Ø110 mm < Ledningsnet ≤ Ø 250 mm","meter",100," -   "," -   "]
["Støbejernsledninger Ø 250 mm < Ledningsnet ≤ Ø 500mm","meter",100," -   "," -   "]
["Støbejernsledninger Ledningsnet > Ø 500 mm","meter",100," -   "," -   "]
["Eternitledninger ≤ Ø50 mm","meter",75," -   "," -   "]
["Eternitledninger Ø 50mm < Ledningsnet ≤ Ø110 mm","meter",75," -   "," -   "]
["Eternitledninger Ø110 mm < Ledningsnet ≤ Ø 250 mm","meter",75," -   "," -   "]
["Eternitledninger Ø 250 mm < Ledningsnet ≤ Ø 500mm","meter",75," -   "," -   "]
["Eternitledninger Ledningsnet > Ø 500 mm","meter",75," -   "," -   "]
["Skelbrønd, Konstruktioner","stk.",50," -   "," -   "]
["Skelbrønd, Mek./EL","stk.",15," -   "," -   "]
["Inspektionsbrønd, Konstruktioner","stk.",50," -   "," -   "]
["Inspektionsbrønd, Mek./EL","stk.",15," -   "," -   "]
["Stik på ledningsnet, Konstruktioner","stk.",75," -   "," -   "]
["Stik på ledningsnet, Mek./EL","stk.",75," -   "," -   "]
["Ventiler",null,null," -   "]
["Ventiler på ledningsnet ≤ Ø50 mm","stk.",75,86,86]
["Ventiler på Ø 50mm < Ledningsnet ≤ Ø110 mm","stk.",75,895,895]
["Ventiler på Ø110 mm < Ledningsnet ≤ Ø 250 mm","stk.",75,178,178]
["Ventiler på Ø 250 mm < Ledningsnet ≤ Ø 500mm","stk.",75," -   "," -   "]
["Ventiler på ledningsnet > Ø 500 mm","stk.",75," -   "," -   "]
["Pumpestationer, bygværker og bassiner 1",null,null," -   "]
["Pumpestation (inkl. evt. hydrofor)/trykforøger, Konstruktioner","m³/h ",50,150,150]
["Pumpestation (inkl. evt. hydrofor)/trykforøger, Mek./EL","m³/h ",25,150,150]
["Pumpestation (inkl. evt. hydrofor)/trykforøger, SRO","m³/h ",10,150,150]
["Beholderanlæg - højdebeholder","m³",50,1000,1000]
["Beholderanlæg - vandtårn","m³",50,1265,1265]
["Pumpestationer, bygværker og bassiner 2",null,null," -   "]
["Pumpestation (inkl. evt. hydrofor)/trykforøger, Konstruktioner","m³/h ",50," -   "]
["Pumpestation (inkl. evt. hydrofor)/trykforøger, Mek./EL","m³/h ",25," -   "]
["Pumpestation (inkl. evt. hydrofor)/trykforøger, SRO","m³/h ",10," -   "]
["Beholderanlæg - højdebeholder","m³",50," -   "]
["Beholderanlæg - vandtårn","m³",50," -   "]
["Pumpestationer, bygværker og bassiner 3",null,null," -   "]
["Pumpestation (inkl. evt. hydrofor)/trykforøger, Konstruktioner","m³/h ",50," -   "]
["Pumpestation (inkl. evt. hydrofor)/trykforøger, Mek./EL","m³/h ",25," -   "]
["Pumpestation (inkl. evt. hydrofor)/trykforøger, SRO","m³/h ",10," -   "]
["Beholderanlæg - højdebeholder","m³",50," -   "]
["Beholderanlæg - vandtårn","m³",50," -   "]
["Pumpestationer, bygværker og bassiner 4",null,null," -   "]
["Pumpestation (inkl. evt. hydrofor)/trykforøger, Konstruktioner","m³/h ",50," -   "]
["Pumpestation (inkl. evt. hydrofor)/trykforøger, Mek./EL","m³/h ",25," -   "]
["Pumpestation (inkl. evt. hydrofor)/trykforøger, SRO","m³/h ",10," -   "]
["Beholderanlæg - højdebeholder","m³",50," -   "]
["Beholderanlæg - vandtårn","m³",50," -   "]
["Pumpestationer, bygværker og bassiner 5",null,null," -   "]
["Pumpestation (inkl. evt. hydrofor)/trykforøger, Konstruktioner","m³/h ",50," -   "]
["Pumpestation (inkl. evt. hydrofor)/trykforøger, Mek./EL","m³/h ",25," -   "]
["Pumpestation (inkl. evt. hydrofor)/trykforøger, SRO","m³/h ",10," -   "]
["Beholderanlæg - højdebeholder","m³",50," -   "]
["Beholderanlæg - vandtårn","m³",50," -   "]
["Pumpestationer, bygværker og bassiner 6",null,null," -   "]
["Pumpestation (inkl. evt. hydrofor)/trykforøger, Konstruktioner","m³/h ",50," -   "]
["Pumpestation (inkl. evt. hydrofor)/trykforøger, Mek./EL","m³/h ",25," -   "]
["Pumpestation (inkl. evt. hydrofor)/trykforøger, SRO","m³/h ",10," -   "]
["Beholderanlæg - højdebeholder","m³",50," -   "]
["Beholderanlæg - vandtårn","m³",50," -   "]
["Pumpestationer, bygværker og bassiner 7",null,null," -   "]
["Pumpestation (inkl. evt. hydrofor)/trykforøger, Konstruktioner","m³/h ",50," -   "]
["Pumpestation (inkl. evt. hydrofor)/trykforøger, Mek./EL","m³/h ",25," -   "]
["Pumpestation (inkl. evt. hydrofor)/trykforøger, SRO","m³/h ",10," -   "]
["Beholderanlæg - højdebeholder","m³",50," -   "]
["Beholderanlæg - vandtårn","m³",50," -   "]
["Pumpestationer, bygværker og bassiner 8",null,null," -   "]
["Pumpestation (inkl. evt. hydrofor)/trykforøger, Konstruktioner","m³/h ",50," -   "]
["Pumpestation (inkl. evt. hydrofor)/trykforøger, Mek./EL","m³/h ",25," -   "]
["Pumpestation (inkl. evt. hydrofor)/trykforøger, SRO","m³/h ",10," -   "]
["Beholderanlæg - højdebeholder","m³",50," -   "]
["Beholderanlæg - vandtårn","m³",50," -   "]
["Pumpestationer, bygværker og bassiner 9",null,null," -   "]
["Pumpestation (inkl. evt. hydrofor)/trykforøger, Konstruktioner","m³/h ",50," -   "]
["Pumpestation (inkl. evt. hydrofor)/trykforøger, Mek./EL","m³/h ",25," -   "]
["Pumpestation (inkl. evt. hydrofor)/trykforøger, SRO","m³/h ",10," -   "]
["Beholderanlæg - højdebeholder","m³",50," -   "]
["Beholderanlæg - vandtårn","m³",50," -   "]
["Pumpestationer, bygværker og bassiner 10",null,null," -   "]
["Pumpestation (inkl. evt. hydrofor)/trykforøger, Konstruktioner","m³/h ",50," -   "]
["Pumpestation (inkl. evt. hydrofor)/trykforøger, Mek./EL","m³/h ",25," -   "]
["Pumpestation (inkl. evt. hydrofor)/trykforøger, SRO","m³/h ",10," -   "]
["Beholderanlæg - højdebeholder","m³",50," -   "]
["Beholderanlæg - vandtårn","m³",50," -   "]
["Pumpestation (inkl. evt. hydrofor)/trykforøger, Konstruktioner","m³/h ",50," -   "]
["Pumpestation (inkl. evt. hydrofor)/trykforøger, Mek./EL","m³/h ",25," -   "]
["Pumpestation (inkl. evt. hydrofor)/trykforøger, SRO","m³/h ",10," -   "]
["Beholderanlæg - højdebeholder","m³",50," -   "]
["Beholderanlæg - vandtårn","m³",50," -   "]
["Andre",null,null," -   "]
["Afregningsmålere, mekaniske, ","stk.",8,2937,1500]
["Afregningsmålere, elektroniske ≤ Ø 110mm (Qn 10)","stk.",10,3219,4000]
["Afregningsmålere, elektroniske > Ø110 mm","stk.",10,200,200]
["SRO-brønd/kvarterbrønd/sektionsbrønd, Konstruktioner","stk.",50,4,{"$f":"+D166","v":4}]
["SRO-brønd/kvarterbrønd/sektionsbrønd, Mek./EL","stk.",15," -   "]
["SRO-brønd/kvarterbrønd/sektionsbrønd, SRO","stk.",10,1,{"$f":"D168","v":1}]
[]
[]
[]
[]
[]
[]
[]
[]
[]
[]
[]
[]
[]
["FEJL"]

{"sheet":"Fællesfunktionsanlæg","index":2,"n_rows":11,"n_cols":6,"rows_kept":11,"cut":false,"hidden":false,"merged":[[0,5,1,5],[0,0,1,0],[0,1,1,1],[0,2,1,2],[0,3,1,3],[0,4,1,4]]}
["Fællesfunktionsanlæg","Enhed","Standard-levetid","Samlet mængde per 31/12-2014","Samlet mængde per 31/12-2015","Bemærk-ninger"]
[]
["Andre"]
["Køretøjer, personbil","stk.",5,0]
["Køretøjer, små lastvogne (< 3.500 kg.)","stk.",5,4,4]
["Køretøjer, store lastvogne (> 3.500 kg.)","stk.",5,0]
["Køretøjer, entreprenørmaskiner","stk.",5,0]
["Øvrige"]
["Solcelleanlæg","KWh",25,0]
["EDB, tablets og navigationsudstyr","stk.",5,1,1]
["Elektroniske kort","stk.",5,1,1]

{"sheet":"Drop downliste","index":3,"n_rows":13,"n_cols":11,"rows_kept":13,"cut":false,"hidden":true,"merged":[]}
[]
[null,"datakvalitet","Serviceselskab","Overheads","Infrastrukturomlægninger","Infrastruktur per år","år 1","år 2","år 3","år 4","år 5"]
[null,null,null,null,null,null,2010,2011,2012,2013,2014]
[null,1,"ja","Full-cost","ja",0.1]
[null,2,"nej","Direct-cost","nej",0.2]
[null,3,null,"Nøgletalsfordeling",null,0.3]
[null,null,null,"Activity based cost",null,0.4]
[null,null,null,"Andet",null,0.5]
[null,null,null,null,null,0.6]
[null,null,null,null,null,0.7]
[null,null,null,null,null,0.8]
[null,null,null,null,null,0.9]
[null,null,null,null,null,1]